[Event "106th British-ch Major 2019"]
[Site "Torquay"]
[Date "2019.08.04"]
[Round "9.15"]
[White "Cocks, Elliot"]
[Black "Gardiner, Eric D"]
[Result "0-1"]
[ECO "C03"]
[WhiteElo "1907"]
[BlackElo "1957"]
[Annotator "NA"]
[PlyCount "103"]
[EventDate "2019.07.27"]
[EventType "swiss"]
[EventCountry "GBR"]
[SourceTitle "playchess.com"]
[Source "ChessBase"]
[SourceQuality "1"]
[TimeControl "40/5400+30:1800+30"]

1. e4 {[%emt 0:00:00]} e6 {[%emt 0:00:00]} 2. d4 {[%emt 0:01:32]} d5 {[%emt 0:00:00]} 3. Nd2 {[%emt 0:04:49]} Be7 {[%emt 0:00:00]} 4. Bd3 {[%emt 0:02:29]} c5 {[%emt 0:00:39]} 5. dxc5 {[%emt 0:02:39]} Nf6 {[%emt 0:00:56]} 6. exd5 {[%emt 0:06:26]} exd5 {[%emt 0:00:43]} 7. Ngf3 {[%emt 0:00:16]} O-O {[%emt 0:06:18]} 8. Nb3 {[%emt 0:04:44]} Nbd7 {[%emt 0:09:59]} 9. O-O {[%emt 0:01:03]} Nxc5 {[%emt 0:02:08]} 10. Nxc5 {[%emt 0:01:22]} Bxc5 {[%emt 0:00:05]} 11. Bg5 {[%emt 0:00:31]} Qb6 {[%emt 0:00:54]} 12. Rb1 {[%emt 0:04:08]} Ne4 {[%emt 0:12:56]} 13. Bh4 {[%emt 0:01:52]} Bf5 {[%emt 0:10:29]} 14. Nd2 {[%emt 0:06:28]} Qh6 {[%emt 0:02:38]} 15. Nb3 {[%emt 0:00:47]} Bb6 {[%emt 0:09:15]} 16. Bg3 {[%emt 0:00:34]} Qg6 {[%emt 0:05:38]} 17. Nc1 {[%emt 0:11:23]} Rfe8 {[%emt 0:11:38]} 18. Ne2 {[%emt 0:06:38]} Nxg3 {[%emt 0:02:10]} 19. Nxg3 {[%emt 0:03:04]} Bxd3 {[%emt 0:00:12]} 20. Qxd3 {[%emt 0:02:47]} Qxd3 {[%emt 0:00:17]} 21. cxd3 {[%emt 0:00:06]} g6 {[%emt 0:01:09]} 22. Rbc1 {[%emt 0:03:26]} Rac8 {[%emt 0:02:45]} 23. Rfd1 {[%emt 0:00:16]} Bd4 {[%emt 0:02:28]} 24. b3 {[%emt 0:09:55]} Bb2 {[%emt 0:01:04]} 25. Rxc8 {[%emt 0:06:56]} Rxc8 {[%emt 0:00:05]} 26. Nf1 {[%emt 0:00:07]} Bd4 {[%emt 0:04:09]} 27. g3 {[%emt 0:00:43]} Kg7 {[%emt 0:02:10]} 28. Kg2 {[%emt 0:00:17]} Kf6 {[%emt 0:01:40]} 29. Kf3 {[%emt 0:00:55]} h5 {[%emt 0:01:58]} 30. Rd2 {[%emt 0:00:43]} Rc1 {[%emt 0:02:03]} 31. Ne3 {[%emt 0:00:48]} Bxe3 {[%emt 0:00:47]} 32. Kxe3 {[%emt 0:02:13]} Ke6 {[%emt 0:02:26]} 33. Kd4 {[%emt 0:00:40]} Rf1 {[%emt 0:02:00]} 34. f4 {[%emt 0:02:36]} Rh1 {[%emt 0:00:20]} 35. Re2+ {[%emt 0:03:35]} Kd6 {[%emt 0:00:24]} 36. Re5 {[%emt 0:00:31]} Rxh2 {[%emt 0:00:13]} 37. Rxd5+ {[%emt 0:00:07]} Ke6 {[%emt 0:01:35]} 38. Re5+ {[%emt 0:01:33]} Kf6 {[%emt 0:00:28]} 39. a4 {[%emt 0:06:08]} Rg2 {[%emt 0:00:16]} 40. Re3 {[%emt 0:01:21]} Kf5 {[%emt 0:04:03]} 41. Kc3 {[%emt 0:05:31]} Kg4 {[%emt 0:01:39]} 42. d4 {[%emt 0:00:15]} Rxg3 {[%emt 0:00:24]} 43. Rxg3+ {[%emt 0:00:06]} Kxg3 {[%emt 0:00:06]} 44. d5 {[%emt 0:00:04]} h4 {[%emt 0:00:12]} 45. d6 {[%emt 0:00:04]} h3 {[%emt 0:00:07]} 46. d7 {[%emt 0:00:02]} h2 {[%emt 0:00:07]} 47. d8=Q {[%emt 0:00:11]} h1=Q {[%emt 0:00:07]} 48. Qg5+ {[%emt 0:00:52]} Kh2 {[%emt 0:11:55]} 49. Qh4+ {[%emt 0:12:04]} Kg1 {[%emt 0:00:18]} 50. Qe1+ {[%emt 0:03:15]} Kg2 {[%emt 0:00:32]} 51. Qe3 {[%emt 0:00:07]} Qh3 {[%emt 0:01:02]} 52. Kd4 {[%emt 0:00:52]} 0-1

[Event "106th British-ch Major 2019"]
[Site "Torquay"]
[Date "2019.08.04"]
[Round "9.16"]
[White "Young, Daniel J"]
[Black "Rathbone-Jones, Ifan"]
[Result "1-0"]
[ECO "C18"]
[WhiteElo "1971"]
[BlackElo "1855"]
[Annotator "NA"]
[PlyCount "65"]
[EventDate "2019.07.27"]
[EventType "swiss"]
[EventCountry "GBR"]
[SourceTitle "playchess.com"]
[Source "ChessBase"]
[SourceQuality "1"]
[TimeControl "40/5400+30:1800+30"]

1. e4 {[%emt 0:00:00]} e6 {[%emt 0:00:00]} 2. d4 {[%emt 0:00:00]} d5 {[%emt 0:00:00]} 3. Nc3 {[%emt 0:00:00]} Bb4 {[%emt 0:00:18]} 4. e5 {[%emt 0:00:01]} c5 {[%emt 0:00:18]} 5. a3 {[%emt 0:00:06]} Bxc3+ {[%emt 0:00:11]} 6. bxc3 {[%emt 0:00:02]} c4 {[%emt 0:00:07]} 7. Qg4 {[%emt 0:01:19]} Qa5 {[%emt 0:01:30]} 8. Bd2 {[%emt 0:01:19]} g6 {[%emt 0:00:20]} 9. Nf3 {[%emt 0:01:24]} Nd7 {[%emt 0:06:47]} 10. Be2 {[%emt 0:01:05]} Nh6 {[%emt 0:00:43]} 11. Qf4 {[%emt 0:02:36]} Nf5 {[%emt 0:00:12]} 12. g4 {[%emt 0:01:27]} Ne7 {[%emt 0:05:59]} 13. Ng5 {[%emt 0:01:38]} O-O {[%emt 0:00:54]} 14. h4 {[%emt 0:08:16]} f6 {[%emt 0:02:40]} 15. Nxe6 {[%emt 0:03:32]} fxe5 {[%emt 0:00:08]} 16. Qh6 {[%emt 0:01:43]} Rf7 {[%emt 0:00:06]} 17. h5 {[%emt 0:05:31]} Qb6 {[%emt 0:03:44]} 18. hxg6 {[%emt 0:02:58]} Nxg6 {[%emt 0:00:07]} 19. Ng5 {[%emt 0:01:35]} Re7 {[%emt 0:01:42]} 20. Nxh7 {[%emt 0:01:42]} exd4 {[%emt 0:00:10]} 21. cxd4 {[%emt 0:01:23]} Qe6 {[%emt 0:04:23]} 22. Be3 {[%emt 0:00:49]} Rg7 {[%emt 0:03:21]} 23. Bf3 {[%emt 0:06:29]} Nb6 {[%emt 0:00:58]} 24. g5 {[%emt 0:06:54]} Qf5 {[%emt 0:03:00]} 25. Nf6+ {[%emt 0:03:43]} Kf7 {[%emt 0:00:10]} 26. Ne8 {[%emt 0:08:59]} Qxc2 {[%emt 0:04:12]} 27. Qxg7+ {[%emt 0:00:44]} Kxe8 {[%emt 0:00:07]} 28. Qg8+ {[%emt 0:01:38]} Kd7 {[%emt 0:03:16]} 29. Qg7+ {[%emt 0:06:13]} Ne7 {[%emt 0:02:10]} 30. Rc1 {[%emt 0:04:53]} Qf5 {[%emt 0:02:12]} 31. Rh7 {[%emt 0:05:15]} Qxf3 {[%emt 0:01:00]} 32. Qxe7+ {[%emt 0:00:11]} Kc6 {[%emt 0:00:04]} 33. Qc5# {[%emt 0:00:26]} 1-0

[Event "106th British-ch Major 2019"]
[Site "Torquay"]
[Date "2019.08.04"]
[Round "9.17"]
[White "Sanitt, Ethan"]
[Black "Taylor, William J"]
[Result "1-0"]
[ECO "A36"]
[WhiteElo "1752"]
[BlackElo "2062"]
[Annotator "NA"]
[PlyCount "123"]
[EventDate "2019.07.27"]
[EventType "swiss"]
[EventCountry "GBR"]
[SourceTitle "playchess.com"]
[Source "ChessBase"]
[SourceQuality "1"]
[TimeControl "40/5400+30:1800+30"]

1. c4 {[%emt 0:00:00]} Nf6 {[%emt 0:00:00]} 2. g3 {[%emt 0:00:00]} g6 {[%emt 0:00:02]} 3. Bg2 {[%emt 0:00:00]} Bg7 {[%emt 0:00:05]} 4. Nc3 {[%emt 0:00:00]} O-O {[%emt 0:00:07]} 5. d3 {[%emt 0:00:00]} d6 {[%emt 0:00:18]} 6. e4 {[%emt 0:00:00]} c5 {[%emt 0:00:31]} 7. Nge2 {[%emt 0:00:17]} Nc6 {[%emt 0:00:08]} 8. O-O {[%emt 0:00:15]} a6 {[%emt 0:00:47]} 9. h3 {[%emt 0:00:08]} Rb8 {[%emt 0:00:10]} 10. a4 {[%emt 0:00:07]} Ne8 {[%emt 0:00:36]} 11. Be3 {[%emt 0:00:12]} e5 {[%emt 0:00:10]} 12. Nd5 {[%emt 0:07:20]} Nc7 {[%emt 0:01:06]} 13. Nec3 {[%emt 0:00:49]} Nxd5 {[%emt 0:00:30]} 14. Nxd5 {[%emt 0:00:55]} Be6 {[%emt 0:01:54]} 15. Qd2 {[%emt 0:02:02]} b6 {[%emt 0:00:19]} 16. Bh6 {[%emt 0:08:00]} Qd7 {[%emt 0:03:38]} 17. Kh2 {[%emt 0:05:46]} Nd4 {[%emt 0:03:25]} 18. Bxg7 {[%emt 0:03:20]} Kxg7 {[%emt 0:00:04]} 19. Qg5 {[%emt 0:17:52]} f6 {[%emt 0:19:51]} 20. Qh4 {[%emt 0:00:55]} b5 {[%emt 0:01:09]} 21. axb5 {[%emt 0:01:41]} axb5 {[%emt 0:02:51]} 22. Ra2 {[%emt 0:07:33]} bxc4 {[%emt 0:01:49]} 23. dxc4 {[%emt 0:01:03]} Rb3 {[%emt 0:07:06]} 24. f4 {[%emt 0:06:01]} f5 {[%emt 0:16:51]} 25. Ra8 {[%emt 0:04:45]} Bxd5 {[%emt 0:04:12]} 26. Rxf8 {[%emt 0:00:52]} Kxf8 {[%emt 0:00:03]} 27. cxd5 {[%emt 0:02:23]} Kg7 {[%emt 0:04:47]} 28. Rf2 {[%emt 0:05:21]} Re3 {[%emt 0:07:02]} 29. fxe5 {[%emt 0:01:51]} dxe5 {[%emt 0:00:03]} 30. Qg5 {[%emt 0:00:29]} Rb3 {[%emt 0:04:18]} 31. exf5 {[%emt 0:02:11]} Nxf5 {[%emt 0:00:16]} 32. g4 {[%emt 0:00:22]} h6 {[%emt 0:01:10]} 33. Qc1 {[%emt 0:00:38]} Ne7 {[%emt 0:04:38]} 34. Qxc5 {[%emt 0:00:13]} Rb5 {[%emt 0:00:14]} 35. Qc4 {[%emt 0:03:51]} Nxd5 {[%emt 0:05:14]} 36. Rd2 {[%emt 0:01:13]} e4 {[%emt 0:00:08]} 37. Bxe4 {[%emt 0:03:32]} Qd6+ {[%emt 0:00:01]} 38. Kh1 {[%emt 0:01:47]} Nb6 {[%emt 0:00:34]} 39. Rxd6 {[%emt 0:03:23]} Nxc4 {[%emt 0:00:16]} 40. Rxg6+ {[%emt 0:02:43]} Kf8 {[%emt 0:00:16]} 41. Bd3 {[%emt 0:31:14]} Rb4 {[%emt 0:31:10]} 42. Bxc4 {[%emt 0:00:38]} Rxc4 {[%emt 0:00:03]} 43. Rxh6 {[%emt 0:01:08]} Rc1+ {[%emt 0:00:03]} 44. Kg2 {[%emt 0:00:16]} Rc2+ {[%emt 0:00:03]} 45. Kg3 {[%emt 0:00:18]} Rxb2 {[%emt 0:00:02]} 46. Rh7 {[%emt 0:00:14]} Kg8 {[%emt 0:00:13]} 47. Rc7 {[%emt 0:00:33]} Kh8 {[%emt 0:00:54]} 48. Kh4 {[%emt 0:01:18]} Rb5 {[%emt 0:00:46]} 49. g5 {[%emt 0:00:36]} Rb3 {[%emt 0:00:15]} 50. Kg4 {[%emt 0:00:12]} Rb4+ {[%emt 0:00:16]} 51. Kh5 {[%emt 0:00:13]} Rb3 {[%emt 0:00:32]} 52. h4 {[%emt 0:00:23]} Rb4 {[%emt 0:00:57]} 53. Kh6 {[%emt 0:02:43]} Rb6+ {[%emt 0:01:34]} 54. g6 {[%emt 0:00:17]} Rb8 {[%emt 0:00:06]} 55. h5 {[%emt 0:00:47]} Kg8 {[%emt 0:00:24]} 56. Kg5 {[%emt 0:01:02]} Ra8 {[%emt 0:04:13]} 57. Rc6 {[%emt 0:00:37]} Kg7 {[%emt 0:01:21]} 58. h6+ {[%emt 0:00:11]} Kg8 {[%emt 0:00:31]} 59. h7+ {[%emt 0:01:11]} Kg7 {[%emt 0:00:41]} 60. Rc7+ {[%emt 0:00:23]} Kh8 {[%emt 0:00:13]} 61. Kh6 {[%emt 0:00:20]} Rc8 {[%emt 0:01:06]} 62. g7# {[%emt 0:01:01]} 1-0

[Event "106th British-ch Major 2019"]
[Site "Torquay"]
[Date "2019.08.04"]
[Round "9.18"]
[White "Menadue, Jeremy Fs"]
[Black "Tombolis, Christopher"]
[Result "1-0"]
[ECO "D35"]
[WhiteElo "2016"]
[BlackElo "1883"]
[Annotator "NA"]
[PlyCount "39"]
[EventDate "2019.07.27"]
[EventType "swiss"]
[EventCountry "GBR"]
[SourceTitle "playchess.com"]
[Source "ChessBase"]
[SourceQuality "1"]
[TimeControl "40/5400+30:1800+30"]

1. d4 {[%emt 1:00:59]} d5 {[%emt 0:00:08]} 2. c4 {[%emt 0:00:18]} e6 {[%emt 0:00:05]} 3. Nc3 {[%emt 0:00:06]} Nf6 {[%emt 0:00:06]} 4. Bg5 {[%emt 0:00:54]} Be7 {[%emt 0:00:08]} 5. Nf3 {[%emt 0:01:00]} O-O {[%emt 0:00:07]} 6. cxd5 {[%emt 0:01:46]} exd5 {[%emt 0:00:32]} 7. Qc2 {[%emt 0:00:30]} Nbd7 {[%emt 0:02:19]} 8. e3 {[%emt 0:00:42]} h6 {[%emt 0:00:42]} 9. Bf4 {[%emt 0:02:44]} b6 {[%emt 0:02:19]} 10. Bd3 {[%emt 0:11:06]} a6 {[%emt 0:16:13]} 11. g4 {[%emt 0:05:45]} g5 {[%emt 0:16:59]} 12. Bg3 {[%emt 0:21:49]} Bb7 {[%emt 0:04:46]} 13. h4 {[%emt 0:03:59]} Nxg4 {[%emt 0:06:00]} 14. Bf5 {[%emt 0:02:47]} gxh4 {[%emt 0:08:55]} 15. Bxg4 {[%emt 0:07:55]} hxg3 {[%emt 0:00:11]} 16. Rxh6 {[%emt 0:00:09]} Nf6 {[%emt 0:02:24]} 17. Qf5 {[%emt 0:01:28]} gxf2+ {[%emt 0:00:40]} 18. Kf1 {[%emt 0:02:32]} Re8 {[%emt 0:02:59]} 19. Qg5+ {[%emt 0:00:46]} Kf8 {[%emt 0:00:13]} 20. Rh8+ {[%emt 0:00:06]} 1-0

[Event "106th British-ch Major 2019"]
[Site "Torquay"]
[Date "2019.08.04"]
[Round "9.19"]
[White "Rushbrooke, Remy"]
[Black "Camp, Imogen Al"]
[Result "1-0"]
[ECO "D01"]
[WhiteElo "1963"]
[BlackElo "1850"]
[Annotator "NA"]
[PlyCount "57"]
[EventDate "2019.07.27"]
[EventType "swiss"]
[EventCountry "GBR"]
[SourceTitle "playchess.com"]
[Source "ChessBase"]
[SourceQuality "1"]
[TimeControl "40/5400+30:1800+30"]

1. d4 {[%emt 0:00:00]} d5 {[%emt 0:00:00]} 2. Nc3 {[%emt 0:00:00]} Nf6 {[%emt 0:00:00]} 3. Bg5 {[%emt 0:00:00]} Nbd7 {[%emt 0:00:00]} 4. e3 {[%emt 0:00:00]} e6 {[%emt 0:06:11]} 5. a3 {[%emt 0:00:10]} Be7 {[%emt 0:00:24]} 6. Bd3 {[%emt 0:00:17]} c5 {[%emt 0:01:40]} 7. Nf3 {[%emt 0:01:45]} O-O {[%emt 0:02:02]} 8. Ne5 {[%emt 0:02:12]} Nxe5 {[%emt 0:03:10]} 9. dxe5 {[%emt 0:00:12]} Nd7 {[%emt 0:00:18]} 10. Bf4 {[%emt 0:00:45]} a6 {[%emt 0:01:44]} 11. Qh5 {[%emt 0:03:32]} g6 {[%emt 0:00:52]} 12. Qg4 {[%emt 0:00:07]} Re8 {[%emt 0:01:26]} 13. h4 {[%emt 0:01:30]} Bf8 {[%emt 0:06:58]} 14. h5 {[%emt 0:02:21]} Bg7 {[%emt 0:03:36]} 15. hxg6 {[%emt 0:00:06]} hxg6 {[%emt 0:00:16]} 16. O-O-O {[%emt 0:08:51]} b5 {[%emt 0:12:00]} 17. Rh3 {[%emt 0:03:58]} c4 {[%emt 0:02:18]} 18. Bxg6 {[%emt 0:00:25]} fxg6 {[%emt 0:01:55]} 19. Qxg6 {[%emt 0:00:05]} Nf8 {[%emt 0:00:43]} 20. Qg4 {[%emt 0:00:33]} Qc7 {[%emt 0:10:26]} 21. Rdh1 {[%emt 0:02:48]} Kf7 {[%emt 0:03:14]} 22. Rg3 {[%emt 0:03:44]} Kg8 {[%emt 0:03:21]} 23. Qh5 {[%emt 0:00:24]} Re7 {[%emt 0:02:31]} 24. Qh8+ {[%emt 0:00:07]} Kf7 {[%emt 0:00:05]} 25. Rxg7+ {[%emt 0:00:05]} Ke8 {[%emt 0:00:04]} 26. Rg8 {[%emt 0:00:57]} Rf7 {[%emt 0:00:52]} 27. Rh7 {[%emt 0:00:24]} Qe7 {[%emt 0:04:18]} 28. Rxf7 {[%emt 0:00:10]} Qxf7 {[%emt 0:00:05]} 29. Bh6 {[%emt 0:00:29]} 1-0

[Event "106th British-ch Major 2019"]
[Site "Torquay"]
[Date "2019.08.04"]
[Round "9.20"]
[White "Brown, Tom"]
[Black "Whitehead, Mark A"]
[Result "1-0"]
[ECO "E43"]
[WhiteElo "1953"]
[BlackElo "1887"]
[Annotator "NA"]
[PlyCount "69"]
[EventDate "2019.07.27"]
[EventType "swiss"]
[EventCountry "GBR"]
[SourceTitle "playchess.com"]
[Source "ChessBase"]
[SourceQuality "1"]
[TimeControl "40/5400+30:1800+30"]

1. d4 {[%emt 0:00:00]} Nf6 {[%emt 0:04:24]} 2. c4 {[%emt 0:00:00]} e6 {[%emt 0:00:30]} 3. Nc3 {[%emt 0:00:00]} Bb4 {[%emt 0:01:49]} 4. e3 {[%emt 0:00:00]} b6 {[%emt 0:02:40]} 5. Bd3 {[%emt 0:00:16]} Bb7 {[%emt 0:00:11]} 6. Nf3 {[%emt 0:00:12]} Ne4 {[%emt 0:03:10]} 7. Qc2 {[%emt 0:01:29]} f5 {[%emt 0:00:50]} 8. O-O {[%emt 0:01:32]} Bxc3 {[%emt 0:08:36]} 9. bxc3 {[%emt 0:00:09]} c5 {[%emt 0:00:45]} 10. Nd2 {[%emt 0:06:54]} Nxd2 {[%emt 0:08:03]} 11. Bxd2 {[%emt 0:00:27]} O-O {[%emt 0:06:21]} 12. f3 {[%emt 0:02:15]} Nc6 {[%emt 0:03:45]} 13. Rab1 {[%emt 0:04:05]} Qe7 {[%emt 0:02:23]} 14. Be1 {[%emt 0:05:52]} d6 {[%emt 0:05:37]} 15. Bf2 {[%emt 0:05:08]} Rad8 {[%emt 0:05:27]} 16. e4 {[%emt 0:06:54]} Qf6 {[%emt 0:04:21]} 17. dxc5 {[%emt 0:10:34]} dxc5 {[%emt 0:02:41]} 18. Bxc5 {[%emt 0:01:54]} Rf7 {[%emt 0:00:39]} 19. Be3 {[%emt 0:06:26]} f4 {[%emt 0:00:40]} 20. Bf2 {[%emt 0:01:11]} Rfd7 {[%emt 0:01:51]} 21. Rfd1 {[%emt 0:02:54]} Ba6 {[%emt 0:03:01]} 22. Bf1 {[%emt 0:09:23]} Na5 {[%emt 0:08:35]} 23. Rxd7 {[%emt 0:10:38]} Rxd7 {[%emt 0:00:07]} 24. c5 {[%emt 0:07:43]} Bxf1 {[%emt 0:00:40]} 25. Rxf1 {[%emt 0:03:08]} Qd8 {[%emt 0:02:33]} 26. cxb6 {[%emt 0:01:35]} axb6 {[%emt 0:00:06]} 27. Qa4 {[%emt 0:01:32]} Qc7 {[%emt 0:00:57]} 28. Rd1 {[%emt 0:01:36]} Rxd1+ {[%emt 0:06:00]} 29. Qxd1 {[%emt 0:00:03]} Nc4 {[%emt 0:00:20]} 30. Qd4 {[%emt 0:03:14]} Kf7 {[%emt 0:00:44]} 31. g3 {[%emt 0:01:25]} b5 {[%emt 0:05:26]} 32. Kg2 {[%emt 0:01:28]} Kg6 {[%emt 0:02:50]} 33. h4 {[%emt 0:03:35]} e5 {[%emt 0:01:44]} 34. Qd5 {[%emt 0:01:38]} fxg3 {[%emt 0:00:48]} 35. Qe6+ {[%emt 0:00:29]} 1-0

[Event "106th British-ch Major 2019"]
[Site "Torquay"]
[Date "2019.08.04"]
[Round "9.21"]
[White "Barton, R Alan"]
[Black "Roy, Ali"]
[Result "0-1"]
[ECO "D30"]
[WhiteElo "1941"]
[BlackElo "1871"]
[Annotator "NA"]
[PlyCount "46"]
[EventDate "2019.07.27"]
[EventType "swiss"]
[EventCountry "GBR"]
[SourceTitle "playchess.com"]
[Source "ChessBase"]
[SourceQuality "1"]
[TimeControl "40/5400+30:1800+30"]

1. Nf3 {[%emt 0:00:00]} Nf6 {[%emt 0:00:00]} 2. c4 {[%emt 0:00:00]} e6 {[%emt 0:00:15]} 3. g3 {[%emt 0:01:01]} d5 {[%emt 0:00:16]} 4. Bg2 {[%emt 0:00:28]} Be7 {[%emt 0:01:00]} 5. O-O {[%emt 0:00:29]} O-O {[%emt 0:00:20]} 6. b3 {[%emt 0:01:46]} c5 {[%emt 0:00:19]} 7. Bb2 {[%emt 0:03:31]} Nc6 {[%emt 0:00:33]} 8. cxd5 {[%emt 0:01:43]} exd5 {[%emt 0:01:39]} 9. d4 {[%emt 0:00:27]} b6 {[%emt 0:02:38]} 10. Nc3 {[%emt 0:04:07]} Bb7 {[%emt 0:01:21]} 11. Rc1 {[%emt 0:02:55]} Re8 {[%emt 0:04:02]} 12. a3 {[%emt 0:06:59]} Rc8 {[%emt 0:09:20]} 13. Bh3 {[%emt 0:06:38]} Rb8 {[%emt 0:01:28]} 14. Qd3 {[%emt 0:06:44]} cxd4 {[%emt 0:02:09]} 15. Nxd4 {[%emt 0:05:40]} Nxd4 {[%emt 0:00:18]} 16. Qxd4 {[%emt 0:00:04]} Bc5 {[%emt 0:00:37]} 17. Qh4 {[%emt 0:02:39]} d4 {[%emt 0:01:50]} 18. Rfd1 {[%emt 0:04:39]} Qe7 {[%emt 0:05:35]} 19. Nb1 {[%emt 0:10:28]} Qxe2 {[%emt 0:02:58]} 20. Nd2 {[%emt 0:00:35]} Ne4 {[%emt 0:09:54]} 21. Nxe4 {[%emt 0:06:59]} Rxe4 {[%emt 0:01:50]} 22. Qg5 {[%emt 0:05:20]} Qf3 {[%emt 0:04:49]} 23. Bg2 {[%emt 0:03:45]} Re1+ {[%emt 0:00:06]} 0-1

[Event "106th British-ch Major 2019"]
[Site "Torquay"]
[Date "2019.08.04"]
[Round "9.22"]
[White "Forster, James Connor C"]
[Black "Hosdurga, Chirag"]
[Result "1-0"]
[ECO "E92"]
[WhiteElo "1831"]
[BlackElo "1926"]
[Annotator "NA"]
[PlyCount "79"]
[EventDate "2019.07.27"]
[EventType "swiss"]
[EventCountry "GBR"]
[SourceTitle "playchess.com"]
[Source "ChessBase"]
[SourceQuality "1"]
[TimeControl "40/5400+30:1800+30"]

1. d4 {[%emt 0:00:00]} Nf6 {[%emt 0:00:00]} 2. c4 {[%emt 0:00:00]} g6 {[%emt 0:00:00]} 3. Nc3 {[%emt 0:00:00]} Bg7 {[%emt 0:00:00]} 4. e4 {[%emt 0:00:10]} d6 {[%emt 0:00:00]} 5. Nf3 {[%emt 0:00:21]} O-O {[%emt 0:00:00]} 6. Be2 {[%emt 0:00:16]} e5 {[%emt 0:00:00]} 7. Be3 {[%emt 0:00:41]} Nc6 {[%emt 0:00:17]} 8. d5 {[%emt 0:02:30]} Ne7 {[%emt 0:00:10]} 9. Nd2 {[%emt 0:03:28]} Nd7 {[%emt 0:00:18]} 10. b4 {[%emt 0:01:42]} f5 {[%emt 0:00:11]} 11. f3 {[%emt 0:00:08]} f4 {[%emt 0:00:07]} 12. Bf2 {[%emt 0:00:18]} g5 {[%emt 0:01:19]} 13. c5 {[%emt 0:07:06]} Nf6 {[%emt 0:01:49]} 14. Nc4 {[%emt 0:04:51]} Ne8 {[%emt 0:01:15]} 15. Rc1 {[%emt 0:04:38]} h5 {[%emt 0:00:41]} 16. Nb5 {[%emt 0:04:41]} b6 {[%emt 0:00:15]} 17. cxd6 {[%emt 0:15:30]} cxd6 {[%emt 0:00:52]} 18. a4 {[%emt 0:02:14]} Ng6 {[%emt 0:00:58]} 19. Qb3 {[%emt 0:11:48]} g4 {[%emt 0:01:15]} 20. Ncxd6 {[%emt 0:03:39]} Nxd6 {[%emt 0:00:17]} 21. Nxd6 {[%emt 0:00:03]} Qg5 {[%emt 0:00:58]} 22. Bf1 {[%emt 0:13:23]} Bd7 {[%emt 0:01:21]} 23. Rc7 {[%emt 0:01:09]} Qd8 {[%emt 0:00:32]} 24. Qc3 {[%emt 0:01:41]} Rf6 {[%emt 0:00:12]} 25. Nb5 {[%emt 0:01:06]} Bf8 {[%emt 0:00:27]} 26. Rxa7 {[%emt 0:07:01]} Rc8 {[%emt 0:01:45]} 27. Rc7 {[%emt 0:00:24]} Bxb4 {[%emt 0:00:21]} 28. Qxb4 {[%emt 0:00:05]} Rxc7 {[%emt 0:00:07]} 29. Nxc7 {[%emt 0:00:16]} Qxc7 {[%emt 0:00:03]} 30. Kd2 {[%emt 0:00:30]} Rf8 {[%emt 0:02:02]} 31. Qxb6 {[%emt 0:00:21]} Qc8 {[%emt 0:00:28]} 32. Qxg6+ {[%emt 0:00:07]} Kh8 {[%emt 0:00:04]} 33. Qxh5+ {[%emt 0:00:13]} Kg7 {[%emt 0:00:05]} 34. Qxe5+ {[%emt 0:00:12]} Kg6 {[%emt 0:00:04]} 35. Bd4 {[%emt 0:01:51]} Rf7 {[%emt 0:00:03]} 36. Bd3 {[%emt 0:00:37]} Bxa4 {[%emt 0:00:03]} 37. Rb1 {[%emt 0:00:18]} gxf3 {[%emt 0:00:04]} 38. Rb6+ {[%emt 0:00:12]} Kh7 {[%emt 0:00:06]} 39. Qh5+ {[%emt 0:00:06]} Kg8 {[%emt 0:00:05]} 40. Qh8# {[%emt 0:00:01]} 1-0

[Event "106th British-ch Major 2019"]
[Site "Torquay"]
[Date "2019.08.04"]
[Round "9.24"]
[White "Garnett, John S"]
[Black "Cusick, Peter W"]
[Result "0-1"]
[ECO "B38"]
[WhiteElo "1885"]
[BlackElo "1971"]
[Annotator "NA"]
[PlyCount "94"]
[EventDate "2019.07.27"]
[EventType "swiss"]
[EventCountry "GBR"]
[SourceTitle "playchess.com"]
[Source "ChessBase"]
[SourceQuality "1"]
[TimeControl "40/5400+30:1800+30"]

1. c4 {[%emt 0:00:00]} c5 {[%emt 0:00:41]} 2. Nf3 {[%emt 0:00:00]} Nf6 {[%emt 0:00:23]} 3. d4 {[%emt 0:00:33]} cxd4 {[%emt 0:00:40]} 4. Nxd4 {[%emt 0:00:16]} Nc6 {[%emt 0:00:18]} 5. Nc3 {[%emt 0:01:15]} d6 {[%emt 0:02:22]} 6. e4 {[%emt 0:00:38]} g6 {[%emt 0:00:33]} 7. Be2 {[%emt 0:01:05]} Bg7 {[%emt 0:01:18]} 8. Be3 {[%emt 0:02:59]} O-O {[%emt 0:01:28]} 9. O-O {[%emt 0:00:57]} Bd7 {[%emt 0:01:53]} 10. f3 {[%emt 0:02:45]} Nxd4 {[%emt 0:06:05]} 11. Bxd4 {[%emt 0:00:27]} Bc6 {[%emt 0:00:29]} 12. Qd2 {[%emt 0:01:50]} a6 {[%emt 0:02:38]} 13. Rac1 {[%emt 0:01:41]} Rb8 {[%emt 0:09:12]} 14. Rfd1 {[%emt 0:02:43]} b5 {[%emt 0:03:17]} 15. Qe3 {[%emt 0:04:57]} bxc4 {[%emt 0:05:14]} 16. Bxc4 {[%emt 0:00:52]} Qa5 {[%emt 0:07:16]} 17. Nd5 {[%emt 0:06:34]} Bxd5 {[%emt 0:05:19]} 18. exd5 {[%emt 0:01:16]} Rfe8 {[%emt 0:03:49]} 19. Bc3 {[%emt 0:02:20]} Qa4 {[%emt 0:08:45]} 20. Qe2 {[%emt 0:03:18]} a5 {[%emt 0:09:50]} 21. Bb3 {[%emt 0:05:17]} Qh4 {[%emt 0:05:43]} 22. Bxa5 {[%emt 0:02:59]} Nh5 {[%emt 0:00:53]} 23. Rc4 {[%emt 0:06:55]} Qg5 {[%emt 0:02:59]} 24. Rg4 {[%emt 0:04:12]} Qf5 {[%emt 0:01:21]} 25. Ba4 {[%emt 0:06:25]} Rxb2 {[%emt 0:00:40]} 26. Qe1 {[%emt 0:06:27]} Reb8 {[%emt 0:01:21]} 27. Bb3 {[%emt 0:01:16]} Nf4 {[%emt 0:00:51]} 28. Bd2 {[%emt 0:03:07]} Bd4+ {[%emt 0:02:58]} 29. Kh1 {[%emt 0:01:12]} Be5 {[%emt 0:02:14]} 30. Bxf4 {[%emt 0:09:59]} Bxf4 {[%emt 0:00:10]} 31. Qxe7 {[%emt 0:03:15]} h5 {[%emt 0:01:18]} 32. Rxf4 {[%emt 0:03:06]} Qxf4 {[%emt 0:00:08]} 33. Qe1 {[%emt 0:03:31]} Qg5 {[%emt 0:02:10]} 34. Qg3 {[%emt 0:03:30]} Qf6 {[%emt 0:01:17]} 35. h3 {[%emt 0:02:29]} Re2 {[%emt 0:01:15]} 36. Bc4 {[%emt 0:02:20]} Re3 {[%emt 0:00:32]} 37. Qf2 {[%emt 0:00:41]} Rbe8 {[%emt 0:00:42]} 38. a4 {[%emt 0:01:41]} Ra3 {[%emt 0:02:00]} 39. Bb5 {[%emt 0:00:17]} Ra1 {[%emt 0:00:49]} 40. Rxa1 {[%emt 0:02:42]} Qxa1+ {[%emt 0:00:05]} 41. Kh2 {[%emt 0:30:26]} Re1 {[%emt 0:31:10]} 42. f4 {[%emt 0:00:42]} Rh1+ {[%emt 0:06:15]} 43. Kg3 {[%emt 0:00:09]} Qa3+ {[%emt 0:00:00]} 44. Kh4 {[%emt 0:00:00]} Qc3 {[%emt 0:00:00]} 45. Bc6 {[%emt 0:00:00]} Re1 {[%emt 0:00:00]} 46. Kg5 {[%emt 0:00:00]} Kg7 {[%emt 0:00:00]} 47. Kh4 {[%emt 0:00:00]} Re3 {[%emt 0:00:00]} 0-1